[Event "Klatovy Open-B 2024"]
[Site "Klatovy"]
[Date "2024.07.06"]
[Round "8.12"]
[White "Velkoborsky, Tadeas"]
[Black "Bukvaj, Martin"]
[Result "1-0"]
[ECO "C45"]
[WhiteElo "1578"]
[BlackElo "1687"]
[Annotator "NA RC"]
[PlyCount "49"]
[EventDate "2024.06.21"]
[EventType "swiss"]
[EventCountry "CZE"]
[SourceTitle "playchess.com"]
[Source "ChessBase"]
[SourceQuality "1"]
[TimeControl "40/7200:0"]

1. e4 {[%emt 0:00:00]} e5 {[%emt 0:00:00]} 2. Nf3 {[%emt 0:00:00]} Nc6 {[%emt 0:00:00]} 3. d4 {[%emt 0:00:00]} exd4 {[%emt 0:00:00]} 4. Nxd4 {[%emt 0:00:00]} Qf6 {[%emt 0:00:00]} 5. Be3 {[%emt 0:00:00]} Bc5 {[%emt 0:00:00]} 6. c3 {[%emt 0:00:00]} Qg6 {[%emt 0:00:00]} 7. Nd2 {[%emt 0:00:00]} Nge7 {[%emt 0:00:00]} 8. N2f3 {[%emt 0:05:34]} Nxd4 {[%emt 0:02:29]} 9. cxd4 {[%emt 0:00:55]} Bb4+ {[%emt 0:00:00]} 10. Nd2 {[%emt 0:02:53]} Qxe4 {[%emt 0:01:11]} 11. a3 {[%emt 0:00:46]} Bxd2+ {[%emt 0:00:10]} 12. Qxd2 {[%emt 0:00:00]} Nd5 {[%emt 0:02:15]} 13. O-O-O {[%emt 0:02:52]} Nxe3 {[%emt 0:00:45]} 14. Re1 {[%emt 0:02:08]} Qc6+ {[%emt 0:00:00]} 15. Kb1 {[%emt 0:00:00]} O-O {[%emt 0:01:28]} 16. Rxe3 {[%emt 0:01:02]} d6 {[%emt 0:05:00]} 17. Rg3 {[%emt 0:06:56]} Bf5+ {[%emt 0:05:10]} 18. Bd3 {[%emt 0:00:25]} Bxd3+ {[%emt 0:00:31]} 19. Qxd3 {[%emt 0:00:00]} Rae8 {[%emt 0:05:43]} 20. d5 {[%emt 0:02:21]} Qa4 {[%emt 0:00:48]} 21. Qd2 {[%emt 0:00:18]} Qe4+ {[%emt 0:01:38]} 22. Ka2 {[%emt 0:01:44]} Re5 {[%emt 0:06:16]} 23. Ka1 {[%emt 0:11:19]} Qxd5 {[%emt 0:01:27]} 24. Qc3 {[%emt 0:01:37]} Rfe8 {[%emt 0:02:37]} 25. f4 {[%emt 1:19:10]} 1-0

[Event "Klatovy Open-B 2024"]
[Site "Klatovy"]
[Date "2024.07.06"]
[Round "8.13"]
[White "Strazhnyk, Viktoriia"]
[Black "Koupil, Stepan"]
[Result "0-1"]
[ECO "C54"]
[WhiteElo "1609"]
[BlackElo "1685"]
[Annotator "NA RC"]
[PlyCount "80"]
[EventDate "2024.06.21"]
[EventType "swiss"]
[EventCountry "CZE"]
[SourceTitle "playchess.com"]
[Source "ChessBase"]
[SourceQuality "1"]
[TimeControl "40/7200:0"]

1. e4 {[%emt 0:10:25]} e5 {[%emt 0:00:00]} 2. d4 {[%emt 0:00:08]} exd4 {[%emt 0:00:00]} 3. Nf3 {[%emt 0:00:00]} Nc6 {[%emt 0:00:00]} 4. Bc4 {[%emt 0:00:00]} Bc5 {[%emt 0:00:00]} 5. c3 {[%emt 0:00:00]} Nf6 {[%emt 0:00:00]} 6. e5 {[%emt 0:00:00]} d5 {[%emt 0:00:00]} 7. Bb5 {[%emt 0:00:00]} Ne4 {[%emt 0:00:00]} 8. cxd4 {[%emt 0:00:00]} Bb4+ {[%emt 0:00:00]} 9. Bd2 {[%emt 0:00:03]} Nxd2 {[%emt 0:00:00]} 10. Nbxd2 {[%emt 0:03:33]} O-O {[%emt 0:00:00]} 11. a3 {[%emt 0:01:38]} Ba5 {[%emt 0:00:00]} 12. b4 {[%emt 0:00:00]} Bb6 {[%emt 0:00:00]} 13. Nb3 {[%emt 0:00:13]} Bg4 {[%emt 0:00:00]} 14. Be2 {[%emt 0:00:59]} f6 {[%emt 0:01:53]} 15. h3 {[%emt 0:03:48]} Bh5 {[%emt 0:00:06]} 16. O-O {[%emt 0:02:55]} fxe5 {[%emt 0:04:15]} 17. dxe5 {[%emt 0:00:06]} Re8 {[%emt 0:00:08]} 18. Bb5 {[%emt 0:06:15]} Bxf3 {[%emt 0:02:19]} 19. Qxf3 {[%emt 0:00:00]} Nxe5 {[%emt 0:00:00]} 20. Qg3 {[%emt 0:03:32]} c6 {[%emt 0:00:00]} 21. Be2 {[%emt 0:03:54]} Bc7 {[%emt 0:00:37]} 22. f4 {[%emt 0:02:51]} Ng6 {[%emt 0:01:35]} 23. Bh5 {[%emt 0:03:23]} Bb6+ {[%emt 0:00:00]} 24. Kh1 {[%emt 0:01:08]} Re3 {[%emt 0:00:00]} 25. Rf3 {[%emt 0:00:27]} Rxf3 {[%emt 0:00:00]} 26. Qxf3 {[%emt 0:00:00]} Qf6 {[%emt 0:00:00]} 27. Rf1 {[%emt 0:03:14]} Rf8 {[%emt 0:00:00]} 28. g3 {[%emt 0:06:14]} Ne7 {[%emt 0:01:20]} 29. Re1 {[%emt 0:05:18]} Nf5 {[%emt 0:04:17]} 30. Bg4 {[%emt 0:02:47]} h6 {[%emt 0:01:29]} 31. Re5 {[%emt 0:03:21]} Nd4 {[%emt 0:03:22]} 32. Nxd4 {[%emt 0:00:00]} Bxd4 {[%emt 0:00:00]} 33. Re6 {[%emt 0:00:00]} Qf7 {[%emt 0:00:00]} 34. Rd6 {[%emt 0:01:57]} Re8 {[%emt 0:02:18]} 35. Rd7 {[%emt 0:04:14]} Re7 {[%emt 0:00:12]} 36. Rd8+ {[%emt 0:00:20]} Re8 {[%emt 0:00:10]} 37. Rd7 {[%emt 0:01:06]} Qg6 {[%emt 0:00:26]} 38. f5 {[%emt 0:04:37]} Qg5 {[%emt 0:00:14]} 39. Qd1 {[%emt 0:00:12]} Qe3 {[%emt 0:05:14]} 40. Bf3 {[%emt 0:19:59]} Qf2 {[%emt 0:00:51]} 0-1

[Event "Klatovy Open-B 2024"]
[Site "Klatovy"]
[Date "2024.07.06"]
[Round "8.14"]
[White "Kasik, Denis"]
[Black "Lickova, Anna"]
[Result "1-0"]
[ECO "A01"]
[WhiteElo "1596"]
[BlackElo "1725"]
[Annotator "NA RC"]
[PlyCount "115"]
[EventDate "2024.06.21"]
[EventType "swiss"]
[EventCountry "CZE"]
[SourceTitle "playchess.com"]
[Source "ChessBase"]
[SourceQuality "1"]
[TimeControl "40/7200:0"]

1. b3 {[%emt 0:00:00]} e5 {[%emt 0:00:00]} 2. Bb2 {[%emt 0:00:00]} Nc6 {[%emt 0:00:02]} 3. e3 {[%emt 0:00:00]} Nf6 {[%emt 0:00:03]} 4. Bb5 {[%emt 0:00:00]} Be7 {[%emt 0:00:23]} 5. Bxc6 {[%emt 0:00:00]} dxc6 {[%emt 0:00:00]} 6. Bxe5 {[%emt 0:04:48]} Qd5 {[%emt 0:00:38]} 7. Nf3 {[%emt 0:00:22]} Bg4 {[%emt 0:03:23]} 8. Bb2 {[%emt 0:04:38]} O-O {[%emt 0:03:14]} 9. Nc3 {[%emt 0:03:31]} Qh5 {[%emt 0:03:44]} 10. h3 {[%emt 0:02:53]} Bxf3 {[%emt 0:00:00]} 11. Qxf3 {[%emt 0:00:04]} Qxf3 {[%emt 0:00:10]} 12. gxf3 {[%emt 0:00:00]} Rfd8 {[%emt 0:03:33]} 13. O-O-O {[%emt 0:00:00]} b5 {[%emt 0:06:38]} 14. Rdg1 {[%emt 0:05:19]} a5 {[%emt 0:02:08]} 15. Ne4 {[%emt 0:05:30]} Kh8 {[%emt 0:04:25]} 16. Nxf6 {[%emt 0:04:54]} Bxf6 {[%emt 0:00:00]} 17. Bxf6 {[%emt 0:00:00]} gxf6 {[%emt 0:00:00]} 18. Rg4 {[%emt 0:04:17]} Rg8 {[%emt 0:00:29]} 19. Rhg1 {[%emt 0:00:42]} Rg6 {[%emt 0:00:15]} 20. R1g3 {[%emt 0:13:03]} c5 {[%emt 0:08:37]} 21. Re4 {[%emt 0:07:50]} Kg7 {[%emt 0:03:23]} 22. Kb2 {[%emt 0:02:33]} Rd8 {[%emt 0:02:17]} 23. d3 {[%emt 0:01:01]} Rd7 {[%emt 0:01:09]} 24. Re8 {[%emt 0:03:42]} Rd5 {[%emt 0:05:43]} 25. Ra8 {[%emt 0:03:00]} Rh5 {[%emt 0:02:55]} 26. Rxa5 {[%emt 0:10:36]} c6 {[%emt 0:00:57]} 27. a4 {[%emt 0:04:05]} Rxg3 {[%emt 0:01:55]} 28. fxg3 {[%emt 0:01:16]} Rxh3 {[%emt 0:00:00]} 29. axb5 {[%emt 0:00:00]} cxb5 {[%emt 0:00:00]} 30. Rxb5 {[%emt 0:01:53]} Rxg3 {[%emt 0:00:00]} 31. Rxc5 {[%emt 0:00:00]} f5 {[%emt 0:00:00]} 32. b4 {[%emt 0:04:22]} h5 {[%emt 0:00:01]} 33. b5 {[%emt 0:00:16]} Kf6 {[%emt 0:00:38]} 34. Rc6+ {[%emt 0:01:12]} Ke7 {[%emt 0:01:17]} 35. Rh6 {[%emt 0:02:00]} Rxf3 {[%emt 0:00:14]} 36. Rxh5 {[%emt 0:00:39]} Kf6 {[%emt 0:00:09]} 37. e4 {[%emt 0:03:07]} fxe4 {[%emt 0:01:28]} 38. dxe4 {[%emt 0:00:24]} Re3 {[%emt 0:00:33]} 39. Rf5+ {[%emt 0:00:26]} Kg6 {[%emt 0:01:03]} 40. Rf4 {[%emt 0:00:06]} Kg5 {[%emt 0:01:21]} 41. Rxf7 {[%emt 2:05:00]} Rxe4 {[%emt 1:59:47]} 42. Kb3 {[%emt 0:00:20]} Kg6 {[%emt 0:00:00]} 43. Rf1 {[%emt 0:00:19]} Re5 {[%emt 0:00:00]} 44. c4 {[%emt 0:00:06]} Re3+ {[%emt 0:00:00]} 45. Kb4 {[%emt 0:00:00]} Re4 {[%emt 0:02:26]} 46. b6 {[%emt 0:00:00]} Re6 {[%emt 0:00:12]} 47. c5 {[%emt 0:00:00]} Re4+ {[%emt 0:00:00]} 48. Kb5 {[%emt 0:00:00]} Re7 {[%emt 0:00:00]} 49. c6 {[%emt 0:00:00]} Re5+ {[%emt 0:00:00]} 50. Ka6 {[%emt 0:00:00]} Re6 {[%emt 0:00:00]} 51. c7 {[%emt 0:00:00]} Re8 {[%emt 0:00:00]} 52. b7 {[%emt 0:00:00]} Re6+ {[%emt 0:00:00]} 53. Ka7 {[%emt 0:00:00]} Re8 {[%emt 0:00:00]} 54. c8=Q {[%emt 0:00:00]} Rxc8 {[%emt 0:00:00]} 55. bxc8=Q {[%emt 0:00:00]} Kg5 {[%emt 0:00:00]} 56. Qf5+ {[%emt 0:00:00]} Kh4 {[%emt 0:00:00]} 57. Qg6 {[%emt 0:00:00]} Kh3 {[%emt 0:00:00]} 58. Rh1# {[%emt 0:15:46]} 1-0